bitfinex-derivatives/quotes_SOLF0:USTF0_20250127
["timestamp","ask_amount","ask_price","bid_price","bid_amount"]
[1737965893060,6.13274204,225.95,225.88,37.0928807]
[1737965893256,0.02942503,225.92,225.87,0.0314641]
[1737965893457,0.02942503,225.92,225.88,37.0928807]
[1737965893664,6.13274204,225.95,225.88,37.0928807]
[1737965893966,0.03353422,225.92,225.88,37.12441006]
[1737965894162,6.13274204,225.95,225.88,37.12441006]
[1737965894364,6.13274204,225.95,225.88,0.03152936]
[1737965894966,1.4281,225.94,225.73,1.3806]
[1737965895165,1.4281,225.94,225.72,37.0928807]
[1737965895367,1.4281,225.94,225.73,0.77359661]
[1737965895967,4.4293,225.87,225.72,37.0928807]
[1737965896167,1.4281,225.94,225.72,37.0928807]
[1737965896168,0.03026692,225.86,225.81,0.0337353]
[1737965896964,4.427,225.99,225.86,4.4294]
[1737965897367,191.0,226.0,225.85,37.0928807]
[1737965897572,2.7046,226.01,225.85,37.0928807]
[1737965898070,2.7046,226.01,225.87,4.4292]
[1737965898266,0.0319314,225.95,225.91,0.03251662]
[1737965898663,1.3512,226.01,225.89,37.0928807]
[1737965898864,0.03058921,225.95,225.91,0.03051949]
[1737965899061,4.4282,225.93,225.91,0.03051949]
[1737965899263,0.03058921,225.95,225.91,0.03051949]
[1737965899470,0.03058921,225.95,225.76,37.0928807]
[1737965899769,37.0928807,225.96,225.76,37.0928807]
[1737965899968,1.3669,225.95,225.76,37.0928807]
[1737965900371,1.3669,225.95,225.8,37.0928807]
[1737965900670,1.3669,225.95,225.7,37.0928807]
[1737965900671,37.0928807,225.92,225.7,37.0928807]
[1737965900877,0.02807807,225.9,225.71,5.20612932]
[1737965901077,191.0,225.94,225.74,37.0928807]
[1737965901281,195.428,225.94,225.81,4.4304]
[1737965901477,195.428,225.94,225.78,37.0928807]
[1737965901782,4.4289,225.89,225.76,4.4313]
[1737965902077,0.02821811,225.88,225.84,0.0299267]
[1737965902381,4.4299,225.84,225.72,4.4321]
[1737965902581,37.0928807,225.92,225.7,37.0928807]
[1737965903280,37.0928807,225.88,225.66,37.0928807]
[1737965903578,4.4306,225.8,225.79,0.03157994]
[1737965903782,0.03283676,225.83,225.67,0.77437628]
[1737965904183,37.0928807,225.88,225.67,0.77437628]
[1737965904783,37.0928807,225.84,225.67,0.77437628]
[1737965905085,0.03063572,225.8,225.75,0.03236655]
[1737965905284,4.4315,225.76,225.66,4.4334]
[1737965905480,0.03063572,225.8,225.63,1.3362]
[1737965905782,193.7792,225.83,225.64,0.7747548]
[1737965905979,193.7792,225.83,225.66,37.0928807]
[1737965906386,193.7792,225.83,225.63,1.3362]
[1737965906582,4.4648298,225.77,225.72,0.02895298]
[1737965907486,4.4315,225.76,225.72,0.02895298]
[1737965907789,0.0334298,225.77,225.64,4.4337]
[1737965907981,0.0334298,225.77,225.61,37.0928807]
[1737965908184,193.7792,225.83,225.65,37.0928807]
[1737965908384,193.7792,225.83,225.62,0.77469926]
[1737965908385,193.7792,225.83,225.75,4.4315]
[1737965908580,2.7792,225.83,225.69,37.0928807]
[1737965908785,1.4116,225.83,225.7,0.7741297]
[1737965908989,0.031522,225.78,225.74,0.03193202]
[1737965909788,4.4316,225.75,225.74,0.03193202]
[1737965910091,0.031522,225.78,225.74,0.03193202]
[1737965911689,4.4312,225.77,225.74,0.03193202]
[1737965911886,0.031522,225.78,225.74,0.03193202]
[1737965912988,0.031522,225.78,225.61,37.0928807]
[1737965913189,1.3998,225.78,225.62,0.7750561]
[1737965913382,1.3998,225.78,225.65,37.0928807]
[1737965913692,191.0,225.83,225.69,37.0928807]
[1737965914191,0.03268975,225.78,225.74,0.02869737]
[1737965915893,4.4316,225.76,225.74,0.02869737]
[1737965916694,4.4312,225.77,225.74,0.02869737]
[1737965916987,0.03268975,225.78,225.74,0.02869737]
[1737965917890,4.4316,225.76,225.74,0.02869737]
[1737965918089,0.03268975,225.78,225.74,0.02869737]
[1737965918290,6.13274204,225.96,225.75,37.0928807]
[1737965918487,6.13274204,225.96,225.85,37.0928807]
[1737965918989,6.13274204,225.96,225.86,4.4293]
[1737965919388,6.13274204,225.96,225.89,0.03068375]
[1737965919588,0.03062411,225.93,225.89,0.03068375]
[1737965919893,0.03062411,225.93,225.89,0.03268521]
[1737965920094,0.03062411,225.93,225.76,1.3367]
[1737965920294,0.03062411,225.93,225.73,0.4355]
[1737965920496,1.3187,225.95,225.76,37.0928807]
[1737965920690,4.428,225.94,225.81,4.4304]
[1737965920996,1.3187,225.95,225.76,37.0928807]
[1737965921196,1.3187,225.95,225.77,0.77319202]
[1737965921397,0.03255696,225.88,225.83,0.03152797]
[1737965923696,4.4297,225.85,225.74,4.4318]
[1737965923995,37.0928807,225.89,225.68,37.0928807]
[1737965924194,37.0928807,225.81,225.66,4.4332]
[1737965924396,2.7158,225.8,225.66,4.4332]
[1737965924599,2.7158,225.8,225.63,1.3339]
[1737965924794,4.4318,225.74,225.71,0.03384563]
[1737965924991,0.03338083,225.75,225.71,0.03384563]
[1737965925199,0.03338083,225.75,225.57,0.77546524]
[1737965925395,0.03338083,225.75,225.55,1.337]
[1737965925598,37.0928807,225.73,225.56,0.77562384]
[1737965925999,4.4338,225.65,225.56,0.77562384]
[1737965926299,37.0928807,225.73,225.52,37.0928807]
[1737965926498,4.4369,225.49,225.38,9.7210708]
[1737965926691,37.0928807,225.6,225.24,20.5224352]
[1737965926692,37.0928807,225.41,225.24,20.5224352]
[1737965926897,37.0928807,225.36,225.24,20.5224352]
[1737965927099,0.03042343,225.4,225.29,4.4405]
[1737965927298,0.03042343,225.4,225.35,0.03169918]
[1737965927499,37.0928807,225.38,225.35,0.03169918]
[1737965928198,0.03042343,225.4,225.35,0.03169918]
[1737965928901,37.0928807,225.38,225.35,0.03169918]
[1737965929100,0.03042343,225.4,225.35,0.03169918]
[1737965929901,37.0928807,225.38,225.35,0.03169918]
[1737965930101,37.0928807,225.38,225.24,1.337]
[1737965930402,37.0928807,225.34,225.24,1.337]
[1737965930607,37.0928807,225.38,225.24,1.337]
[1737965930800,37.0928807,225.42,225.24,1.337]
[1737965930999,37.0928807,225.38,225.25,0.77870067]
[1737965931298,0.03343349,225.35,225.24,1.337]
[1737965931502,0.03343349,225.35,225.25,37.0928807]
[1737965931704,0.03343349,225.35,225.26,0.77859497]
[1737965932403,0.03343349,225.35,225.28,4.4408]
[1737965932606,0.03343349,225.35,225.29,0.77859497]
[1737965932806,37.0928807,225.48,225.3,37.87147567]
[1737965933008,37.0928807,225.56,225.34,37.0928807]
[1737965933202,37.0928807,225.56,225.35,0.77859497]
[1737965933406,6.13274204,225.57,225.38,37.0928807]
[1737965933603,6.13274204,225.57,225.39,2.17509497]
[1737965933803,6.13274204,225.57,225.43,4.4378]
[1737965934101,0.03302243,225.5,225.46,0.03146696]
[1737965934503,37.0928807,225.48,225.29,37.0928807]
[1737965934805,37.0928807,225.48,225.3,2.17428189]
[1737965935004,37.0928807,225.48,225.34,4.4396]
[1737965935205,37.0928807,225.48,225.3,1.3965]
[1737965935405,37.0928807,225.48,225.33,4.4398]
[1737965935808,0.03232794,225.41,225.33,4.4398]
[1737965936207,0.03232794,225.41,225.3,1.3965]
[1737965936407,0.03232794,225.41,225.31,0.77796256]
[1737965936605,0.03232794,225.41,225.3,1.3965]
[1737965936807,37.0928807,225.4,225.3,1.3965]
[1737965937412,0.03232794,225.41,225.3,1.3965]
[1737965937604,0.03232794,225.41,225.31,0.77786459]
[1737965938007,0.03232794,225.41,225.39,4.4386]
[1737965938205,37.0928807,225.52,225.33,37.0928807]
[1737965938406,37.0928807,225.52,225.34,0.7775244]
[1737965938713,1.3419,225.55,225.34,0.7775244]
[1737965938913,1.3419,225.55,225.35,0.77722808]
[1737965939113,1.3419,225.55,225.37,37.0928807]
[1737965939310,0.03315942,225.47,225.41,37.0928807]
[1737965939510,37.0928807,225.64,225.43,0.02928262]
[1737965939810,37.0928807,225.6,225.43,0.77722808]
[1737965940017,37.0928807,225.6,225.42,1.3483]
[1737965940411,37.0928807,225.64,225.43,0.77677942]
[1737965940612,0.02992728,225.53,225.49,0.03214259]
[1737965941012,37.0928807,225.56,225.43,1.3636]
[1737965941211,0.03173699,225.53,225.49,0.03105351]
[1737965941615,37.0928807,225.56,225.43,1.3636]
[1737965941819,0.02799272,225.53,225.49,0.03231572]
[1737965942020,37.0928807,225.52,225.32,1.3636]
[1737965942219,0.02799272,225.53,225.32,1.3636]
[1737965942220,37.0928807,225.46,225.32,2.7119]
[1737965942522,37.0928807,225.46,225.33,4.4398]
[1737965942716,37.0928807,225.5,225.34,0.77783513]
[1737965942911,37.0928807,225.5,225.35,0.77783513]
[1737965943112,2.7488,225.51,225.36,0.77766353]
[1737965943323,0.03035525,225.45,225.4,0.03199699]
[1737965943715,37.0928807,225.49,225.37,0.77739388]
[1737965943919,0.02866956,225.45,225.4,0.03189144]
[1737965944322,37.0928807,225.62,225.41,37.0928807]
[1737965944521,195.124,225.64,225.49,37.0928807]
[1737965944717,6.13274204,225.71,225.5,1.3622]
[1737965944921,2.7422,225.7,225.5,2.6959]
[1737965945117,0.03176777,225.63,225.58,0.0281327]
[1737965946225,6.13274204,225.71,225.58,0.0281327]
[1737965946421,6.13274204,225.71,225.58,0.80387238]
[1737965946618,6.13274204,225.71,225.68,4.4329]
[1737965946816,25.75825399,225.87,225.61,37.0928807]
[1737965947017,27.13425399,225.87,225.65,37.0928807]
[1737965947220,27.13425399,225.87,225.66,1.3971]
[1737965947428,232.5228807,225.84,225.69,4.4327]
[1737965947620,0.03197454,225.76,225.71,0.02962272]
[1737965948126,25.76975399,225.87,225.73,37.0928807]
[1737965948326,25.76975399,225.87,225.71,0.02962272]
[1737965948529,25.76975399,225.87,225.7,0.77392178]
[1737965948826,25.76975399,225.87,225.73,37.0928807]
[1737965949018,24.39375399,225.87,225.77,4.4311]
[1737965949219,24.39375399,225.87,225.73,37.0928807]
[1737965949425,0.03002314,225.82,225.78,0.03110217]
[1737965953523,1.3525,225.95,225.78,0.03110217]
[1737965953829,1.4263,226.04,225.89,37.0928807]
[1737965954026,1.4263,226.04,225.9,1.325]
[1737965954226,1.4263,226.04,225.93,4.428]
[1737965954427,1.4263,226.04,225.9,1.325]
[1737965954724,0.02792476,226.01,225.92,4.4282]
[1737965954934,0.02792476,226.01,225.96,0.02839133]
[1737965955229,4.4269,225.99,225.96,0.02839133]
[1737965955726,0.02792476,226.01,225.96,0.02839133]
[1737965955933,4.4267,226.0,225.96,0.02839133]
[1737965956731,0.02792476,226.01,225.96,0.02839133]
[1737965957225,0.02792476,226.01,225.97,4.4272]
[1737965957529,0.02792476,226.01,225.96,0.02839133]
[1737965959133,0.02792476,226.01,225.97,37.0928807]
[1737965959337,192.3325,226.16,225.97,37.0928807]
[1737965959636,1.3325,226.16,226.01,37.0928807]
[1737965959835,1.3325,226.16,226.02,1.3376]
[1737965960036,2.729,226.23,226.07,4.4253]
[1737965960337,1.3905,226.22,226.07,4.4253]
[1737965960537,0.03082849,226.14,226.1,0.03207208]
[1737965961933,0.03082849,226.14,226.1,37.12495278]
[1737965962137,4.4218,226.26,226.1,37.12495278]
[1737965962335,4.4218,226.26,226.14,37.0928807]
[1737965962640,4.4221,226.24,226.1,37.0928807]
[1737965962843,1.3386,226.29,226.1,37.0928807]
[1737965963536,0.03109301,226.22,226.17,0.0306737]
[1737965963743,4.423,226.19,226.17,0.0306737]
[1737965963936,0.03109301,226.22,226.17,0.0306737]
[1737965964233,4.423,226.19,226.17,0.0306737]
[1737965964430,0.03109301,226.22,226.02,38.4304807]
[1737965964835,37.0928807,226.24,226.02,38.4304807]
[1737965965038,4.4233,226.18,226.02,38.4304807]
[1737965965240,37.0928807,226.24,226.02,38.4304807]
[1737965965845,0.03315051,226.15,226.11,0.0321129]
[1737965966339,37.0928807,226.28,226.11,0.0321129]
[1737965966549,0.02856336,226.15,226.11,0.0321129]
[1737965966844,0.02856336,226.15,226.1,37.0928807]
[1737965967042,192.3386,226.29,226.1,37.0928807]
[1737965967244,4.4217,226.26,226.15,4.4237]
[1737965967436,192.3386,226.29,226.11,0.02825752]
[1737965967636,0.0319269,226.22,226.1,37.0928807]
[1737965967943,0.0319269,226.22,226.18,0.03066109]
[1737965969741,1.3796,226.3,226.23,4.4221]
[1737965969938,2.8146,226.39,226.21,37.0928807]
[1737965970145,4.1385,226.39,226.21,37.0928807]
[1737965970347,4.4197,226.36,226.25,37.0928807]
[1737965970951,0.03356081,226.33,226.28,0.0307328]
[1737965971246,0.03356081,226.33,226.11,2.7422]
[1737965971442,0.03356081,226.33,226.12,1.4091]
[1737965971646,37.0928807,226.37,226.19,37.0928807]
[1737965971842,4.4207,226.31,226.2,4.4226]
[1737965972047,37.0928807,226.37,226.15,37.0928807]
[1737965972247,37.0928807,226.32,226.12,1.4091]
[1737965972448,191.0,226.31,226.12,1.4091]
[1737965972648,37.12306993,226.28,226.06,37.0928807]
[1737965972848,37.0928807,226.24,226.06,37.0928807]
[1737965973050,2.8106,226.23,226.02,37.0928807]
[1737965973250,37.0928807,226.16,225.98,1.358]
[1737965973451,191.0,226.15,225.98,1.358]
[1737965973744,37.0928807,226.12,225.92,37.0928807]
[1737965974043,37.0928807,226.08,225.88,37.0928807]
[1737965974247,2.8962,226.07,225.88,37.0928807]
[1737965974447,2.8962,226.07,225.95,4.4276]
[1737965974651,2.8962,226.07,225.92,37.0928807]
[1737965975040,7.3217,226.07,225.92,41.5209807]
[1737965975244,2.8962,226.07,225.92,37.0928807]
[1737965975449,0.03213918,226.02,225.97,0.02836258]
[1737965978247,0.03213918,226.02,225.86,1.358]
[1737965978449,0.03213918,226.02,225.83,37.0928807]
[1737965978650,4.4266,226.01,225.87,4.4291]
[1737965979146,37.0928807,226.03,225.87,4.4291]
[1737965979352,4.4272,225.98,225.85,4.4295]
[1737965979749,4.4278,225.95,225.93,0.02802193]
[1737965979948,0.03172864,225.97,225.79,37.0928807]
[1737965980154,37.0928807,225.98,225.75,37.0928807]
[1737965980353,4.4276,225.96,225.75,37.0928807]
[1737965981048,4.4277,225.95,225.81,4.4304]
[1737965981353,0.02906552,225.88,225.83,0.03252299]
[1737965981651,5.7565,225.94,225.8,4.4305]
[1737965982050,0.03226803,225.88,225.83,0.0332125]
[1737965982955,0.03226803,225.88,225.84,37.0928807]
[1737965983258,191.0,226.02,225.84,37.0928807]
[1737965983553,6.13274204,226.03,225.93,37.0928807]
[1737965983748,6.13274204,226.03,226.01,4.4264]
[1737965984152,6.13274204,226.03,225.97,37.0928807]
[1737965984352,6.13274204,226.03,226.0,0.03203679]
[1737965984658,24.39375399,226.07,225.89,37.0928807]
[1737965984956,24.39375399,226.07,225.97,37.0928807]
[1737965985249,0.02838025,226.04,226.02,4.4263]
[1737965985451,24.39375399,226.07,226.01,37.0928807]
[1737965985654,66.29503761,226.1,226.06,37.0928807]
[1737965985852,121.80722935,226.12,226.11,4.4246]
[1737965986651,1.383,226.18,226.11,4.4246]
[1737965986853,0.03354026,226.14,226.1,37.0928807]
[1737965987156,0.03354026,226.14,226.12,4.4242]
[1737965987559,1.383,226.26,226.19,4.4229]
[1737965987759,1.383,226.26,226.18,37.0928807]
[1737965988055,121.80722935,226.28,226.22,37.0928807]
[1737965988256,1.383,226.35,226.22,37.0928807]
[1737965988756,0.03220921,226.31,226.26,0.02815444]
[1737965989055,4.4207,226.31,226.16,4.4235]
[1737965989458,1.383,226.35,226.14,37.0928807]
[1737965990358,0.03071809,226.27,226.22,0.02793394]
[1737965993458,0.03071809,226.27,226.24,4.4219]
[1737965993658,0.03071809,226.27,226.22,0.02793394]
[1737965993960,0.03071809,226.27,226.22,1.46333394]
[1737965994549,0.03071809,226.27,226.25,4.4217]
[1737965996059,0.03071809,226.27,226.24,4.422]
[1737965996254,0.03071809,226.27,226.22,1.46333394]
[1737965996453,1.392,226.44,226.26,37.0928807]
[1737965996755,1.392,226.44,226.33,37.0928807]
[1737965996956,193.8077,226.55,226.37,37.0928807]
[1737965997156,1.392,226.54,226.44,4.4181]
[1737965997553,1.392,226.54,226.37,37.0928807]
[1737965997758,0.02909457,226.51,226.47,0.03075043]
[1737965998061,38.4848807,226.54,226.37,37.0928807]
[1737965998062,1.392,226.54,226.37,37.0928807]
[1737965998257,1.392,226.54,226.39,4.4189]
[1737965998568,0.03081089,226.51,226.47,0.03323344]
[1737966000360,0.03081089,226.51,226.49,4.417]
[1737966000560,0.03081089,226.51,226.47,0.03323344]
[1737966000866,37.0928807,226.5,226.29,37.0928807]
[1737966001155,1.4345,226.49,226.29,37.0928807]
[1737966001561,4.418,226.45,226.34,4.42]
[1737966001758,37.0928807,226.46,226.24,37.0928807]
[1737966001963,0.03347175,226.42,226.37,0.03201138]
[1737966002158,0.03347175,226.42,226.3,4.4208]
[1737966002467,37.0928807,226.42,226.19,37.0928807]
[1737966003159,191.0,226.45,226.27,37.0928807]
[1737966003663,195.4179,226.45,226.32,4.4204]
[1737966003865,0.02948804,226.38,226.34,0.0332838]
[1737966004963,0.02948804,226.38,226.36,4.4197]
[1737966006158,1.4345,226.49,226.39,4.419]
[1737966006364,1.4345,226.49,226.35,37.0928807]
[1737966006665,1.4345,226.49,226.4,4.4188]
[1737966006862,1.4345,226.49,226.39,37.0928807]
[1737966007364,0.03098557,226.46,226.42,0.03338134]
[1737966008064,0.03098557,226.46,226.44,4.4181]
[1737966008365,0.03098557,226.46,226.42,0.03338134]
[1737966010060,0.03098557,226.46,226.43,37.0928807]
[1737966010259,0.03098557,226.46,226.44,4.418]
[1737966010864,0.03098557,226.46,226.45,4.4179]
[1737966011061,1.4095,226.61,226.43,37.0928807]
[1737966012170,0.0291821,226.54,226.5,0.03059928]
[1737966012772,0.0291821,226.54,226.53,4.4164]
[1737966012964,0.0291821,226.54,226.52,37.0928807]
[1737966013171,0.0291821,226.54,226.5,0.03059928]
[1737966013973,0.0291821,226.54,226.53,4.4164]
[1737966014873,1.4095,226.61,226.56,4.4156]
[1737966015073,1.4095,226.61,226.52,37.0928807]
[1737966015276,1.4095,226.61,226.48,37.0928807]
[1737966016169,0.03090451,226.57,226.52,0.03242064]
[1737966017073,0.03090451,226.57,226.52,37.12530134]
[1737966018671,37.0928807,226.84,226.56,74.1857614]
[1737966018979,4.4078,226.98,226.79,4.4111]
[1737966019181,4.3198,226.99,226.79,37.0928807]
[1737966019372,37.0928807,226.91,226.71,37.0928807]
[1737966020077,0.03122844,226.83,226.79,0.03060122]
[1737966020276,0.03122844,226.83,226.67,37.0928807]
[1737966020472,37.0928807,226.78,226.57,1.3405]
[1737966020677,37.0928807,226.74,226.57,1.3405]
[1737966020873,2.8197,226.73,226.57,1.3405]
[1737966021174,2.8197,226.73,226.53,4.4163]
[1737966021379,37.0928807,226.7,226.51,37.0928807]
[1737966021578,0.03268091,226.66,226.62,0.03029591]
[1737966021778,4.4143,226.64,226.51,4.4167]
[1737966021979,0.03268091,226.66,226.47,37.0928807]
[1737966021980,37.12556161,226.66,226.47,37.0928807]
[1737966022277,4.4153,226.59,226.44,4.418]
[1737966022477,38.4538807,226.58,226.44,4.418]
[1737966022677,38.4538807,226.58,226.4,1.4051]
[1737966022678,2.7563,226.58,226.4,1.4051]
[1737966022878,2.7563,226.58,226.48,4.4173]
[1737966023074,0.03250413,226.51,226.47,0.03295837]
[1737966023880,0.03250413,226.51,226.31,37.0928807]
[1737966024176,4.4175,226.48,226.32,4.4203]
[1737966024374,37.0928807,226.51,226.27,37.0928807]
[1737966024679,37.0928807,226.47,226.27,37.0928807]
[1737966024881,37.0928807,226.43,226.23,37.0928807]
[1737966025082,4.45213656,226.39,226.35,0.02835455]
[1737966025283,0.03283656,226.39,226.21,2.786]
[1737966025576,37.0928807,226.39,226.21,1.4051]
[1737966026284,37.0928807,226.39,226.16,37.0928807]
[1737966026285,4.4206,226.32,226.16,37.0928807]
[1737966026472,37.0928807,226.35,226.26,0.03188193]
[1737966026675,0.02825818,226.27,226.16,37.0928807]
[1737966026871,37.0928807,226.43,226.24,37.0928807]
[1737966027071,1.3227,226.41,226.24,37.0928807]
[1737966027874,1.3227,226.41,226.3,0.03321708]
[1737966028077,0.03053274,226.35,226.3,0.03321708]
[1737966028475,0.03053274,226.35,226.16,37.0928807]
[1737966028978,37.0928807,226.39,226.16,37.0928807]
[1737966029178,1.3227,226.41,226.2,37.0928807]
[1737966029383,1.3227,226.41,226.24,37.0928807]
[1737966029587,0.03316729,226.33,226.24,37.0928807]
[1737966030884,0.03316729,226.33,225.94,13.32]
[1737966030885,0.03316729,226.33,226.28,37.0928807]
[1737966031187,1.3217,226.42,226.28,37.0928807]
[1737966031387,0.03312587,226.33,226.28,37.0928807]
[1737966031787,192.4116,226.45,226.28,37.0928807]
[1737966031987,1.4116,226.45,226.32,37.0928807]
[1737966032189,1.4116,226.45,226.28,37.0928807]
[1737966032388,37.0928807,226.44,226.26,1.4216]
[1737966032588,37.0928807,226.44,226.25,1.383]
[1737966033092,0.03350642,226.37,226.32,0.03266336]
[1737966034892,4.4199,226.35,226.32,0.03266336]
[1737966035099,0.03350642,226.37,226.32,0.03266336]
[1737966036786,37.12638712,226.37,226.15,37.0928807]
[1737966036989,37.0928807,226.33,226.16,2.17386342]
[1737966037192,4.4222,226.24,226.16,1.402]
[1737966037392,1.3886,226.32,226.16,1.402]
[1737966037988,0.03360643,226.26,226.16,1.402]
[1737966038189,1.3886,226.42,226.24,37.0928807]
[1737966038499,1.4193,226.43,226.28,37.0928807]
[1737966039092,1.3673,226.44,226.28,37.0928807]
[1737966039290,0.03279416,226.38,226.33,0.02833294]
[1737966039498,1.3673,226.44,226.33,0.02833294]
[1737966039695,1.4589,226.52,226.33,0.02833294]
[1737966040099,1.4589,226.52,226.32,37.0928807]
[1737966040692,0.03113924,226.44,226.4,0.02939095]
[1737966041091,1.4589,226.52,226.36,37.0928807]
[1737966041291,0.03145748,226.44,226.4,0.03379034]
[1737966041691,37.0928807,226.49,226.4,0.03148295]
[1737966041891,0.03311099,226.44,226.4,0.03148295]
[1737966043089,0.03311099,226.44,226.4,37.12436365]
[1737966043294,2.7995,226.56,226.42,4.4185]
[1737966043886,2.7995,226.56,226.43,4.4183]
[1737966044087,1.4201,226.56,226.43,4.4183]
[1737966044295,1.4201,226.56,226.4,37.0928807]
[1737966044593,0.03120467,226.51,226.47,0.03148932]
[1737966045186,191.0,226.67,226.48,37.0928807]
[1737966045387,1.4201,226.66,226.52,37.0928807]
[1737966045591,1.4201,226.66,226.59,4.4151]
[1737966045797,1.4201,226.66,226.56,37.0928807]
[1737966046296,1.3538,226.75,226.56,37.0928807]
[1737966046499,0.0280856,226.63,226.59,0.0317204]
[1737966046795,1.4397,226.74,226.6,37.0928807]
[1737966047693,1.4397,226.74,226.62,4.4145]
[1737966047889,0.03273265,226.69,226.65,0.03344529]
[1737966048692,37.0928807,226.89,226.68,37.0928807]
[1737966049596,4.4098,226.87,226.72,41.5053807]
[1737966049893,0.03113698,226.81,226.76,0.03091772]
[1737966050096,0.03113698,226.81,226.64,37.0928807]
[1737966050297,37.0928807,226.86,226.64,37.0928807]
[1737966050497,39.9584807,226.9,226.68,37.0928807]
[1737966050697,39.9584807,226.9,226.72,4.4126]
[1737966051102,39.9584807,226.9,226.68,37.0928807]
[1737966051296,4.4098,226.87,226.79,0.03334258]
[1737966051599,0.02945969,226.83,226.79,0.03334258]
[1737966052801,0.02945969,226.83,226.69,1.3446]
[1737966052802,0.02945969,226.83,226.69,38.4374807]
[1737966053197,2.8656,226.9,226.73,37.0928807]
[1737966053801,4.4102,226.85,226.76,4.4119]
[1737966054004,0.02798675,226.84,226.79,0.02984881]
[1737966054299,37.0928807,226.85,226.69,1.3446]
[1737966054604,0.03189083,226.84,226.61,37.0928807]
[1737966054904,37.0928807,226.85,226.62,1.3897]
[1737966055097,4.4117,226.77,226.69,4.4132]
[1737966055303,37.0928807,226.85,226.62,1.3897]
[1737966055502,0.03072121,226.75,226.71,0.03096345]
[1737966055904,37.0928807,226.85,226.65,37.0928807]
[1737966056096,0.03092351,226.75,226.71,0.03033696]
[1737966056495,37.0928807,226.85,226.69,4.4132]
[1737966056698,0.02930456,226.75,226.71,0.03183461]
[1737966057095,329.0928807,226.89,226.69,37.0928807]
[1737966057302,0.03192107,226.75,226.71,0.03263295]
[1737966057600,2.8656,226.9,226.71,0.03201972]
[1737966057797,0.03036151,226.75,226.71,0.03201972]
[1737966058003,4.4103,226.84,226.72,4.4125]
[1737966058303,0.02900725,226.75,226.69,37.0928807]
[1737966058503,4.4107,226.82,226.76,0.03105713]
[1737966058704,2.8656,226.9,226.76,0.03105713]
[1737966058906,0.0335943,226.81,226.69,37.0928807]
[1737966059105,0.0335943,226.81,226.73,4.4125]
[1737966059308,0.0335943,226.81,226.73,0.03379953]
[1737966059510,0.0335943,226.81,226.73,37.12668023]
[1737966059712,0.0335943,226.81,226.75,4.4121]
[1737966060007,0.0335943,226.81,226.73,0.03379953]
[1737966060905,37.0928807,226.77,226.57,38.5024807]
[1737966061106,37.0928807,226.73,226.54,1.3767]
[1737966061314,37.0928807,226.65,226.46,1.3469]
[1737966061513,37.0928807,226.61,226.46,1.3469]
[1737966061715,1.4229,226.64,226.46,1.3469]
[1737966061908,0.03226471,226.56,226.36,37.0928807]
[1737966062113,0.03226471,226.56,226.37,0.77412164]
[1737966062425,191.0,226.63,226.45,37.0928807]
[1737966062619,191.0,226.63,226.49,37.0928807]
[1737966062818,37.0928807,226.73,226.53,37.0928807]
[1737966063516,0.02842286,226.65,226.61,37.12222985]
[1737966063824,1.4463,226.75,226.61,37.12222985]
[1737966064014,37.0928807,226.85,226.61,0.02934915]
[1737966064218,37.0928807,226.85,226.65,37.0928807]
[1737966064614,37.0928807,226.81,226.57,37.0928807]
[1737966064820,37.0928807,226.77,226.57,37.0928807]
[1737966065019,37.12651597,226.77,226.57,37.0928807]
[1737966065316,37.0928807,226.77,226.53,37.0928807]
[1737966065621,4.4123,226.74,226.59,4.4151]
[1737966065815,37.0928807,226.77,226.59,4.4151]
[1737966066119,1.4405,226.76,226.57,37.0928807]
[1737966066316,0.03002234,226.7,226.66,0.03228839]
[1737966066719,1.4405,226.79,226.66,4.4137]
[1737966067021,0.0309107,226.7,226.66,0.03257015]
[1737966067223,1.4405,226.79,226.66,0.03257015]
[1737966067415,0.02920908,226.7,226.68,4.4134]
[1737966067620,1.4405,226.79,226.69,37.0928807]
[1737966067815,2.7768,226.86,226.69,37.0928807]
[1737966068020,4.4107,226.83,226.69,4.4131]
[1737966068322,2.7768,226.86,226.69,4.4131]
[1737966068518,4.4108,226.82,226.68,4.4133]
[1737966068725,2.7768,226.86,226.69,37.0928807]
[1737966069024,2.7768,226.86,226.75,0.03301337]
[1737966069225,0.030416,226.8,226.75,0.03301337]
[1737966069618,0.030416,226.8,226.75,4.44501337]
[1737966069919,0.030416,226.8,226.75,0.03301337]
[1737966071321,0.030416,226.8,226.78,4.4115]
[1737966071518,0.030416,226.8,226.75,0.03301337]
[1737966071719,37.0928807,226.98,226.77,37.0928807]
[1737966072025,1.3226,226.96,226.77,37.0928807]